fUST/lending_fUST_20241223
["ID","MTS","AMOUNT","RATE_DAILY","PERIOD"]
[346341270,1734899459058,-988.04,0.00016438,2]
[346341271,1734899459069,-996.84,0.00016438,2]
[346341272,1734899459078,-500.0,0.00016438,2]
[346341273,1734899459087,-500.0,0.00016438,2]
[346341274,1734899459096,-500.0,0.00016438,2]
[346341275,1734899459105,-791.35,0.00016438,2]
[346341276,1734899459114,-500.0,0.00016438,2]
[346341277,1734899459123,-1032.67,0.00016438,2]
[346341278,1734899459132,-151.0,0.00016438,2]
[346341279,1734899459142,-151.0,0.00016438,2]
[346341280,1734899459151,-500.0,0.00016438,2]
[346341281,1734899459160,-500.0,0.00016438,2]
[346341282,1734899459170,-625.52,0.00016438,2]
[346341283,1734899459179,-622.29,0.00016438,2]
[346341284,1734899459188,-500.0,0.00016438,2]
[346341285,1734899459197,-500.0,0.00016438,2]
[346341286,1734899459206,-752.42,0.00016438,2]
[346341287,1734899459215,-168.0,0.00016438,2]
[346341288,1734899459224,-629.53,0.00016438,2]
[346341289,1734899459234,-500.0,0.00016438,2]
[346341290,1734899459243,-2032.24,0.00016438,2]
[346341291,1734899459252,-576.08,0.00016438,2]
[346341292,1734899459261,-576.08,0.00016438,2]
[346341293,1734899459271,-576.08,0.00016438,2]
[346341294,1734899459280,-576.08,0.00016438,2]
[346341295,1734899459289,-576.08,0.00016438,2]
[346341296,1734899459299,-576.08,0.00016438,2]
[346341297,1734899459308,-576.08,0.00016438,2]
[346341298,1734899459318,-576.08,0.00016438,2]
[346341299,1734899459327,-576.08,0.00016438,2]
[346341300,1734899459336,-576.08,0.00016438,2]
[346341301,1734899459345,-576.08,0.00016438,2]
[346341302,1734899459355,-500.0,0.00016438,2]
[346341303,1734899459364,-632.76,0.00016438,2]
[346341304,1734899459373,-955.66,0.00016438,2]
[346341305,1734899459383,-500.0,0.00016438,2]
[346341306,1734899459392,-217.053312,0.00016438,2]
[346341307,1734899459401,-601.33,0.00016438,2]
[346341308,1734899459411,-1256.22,0.00016438,2]
[346341309,1734899459420,-500.0,0.00016438,2]
[346341310,1734899459430,-305.494541,0.00016438,2]
[346341312,1734899459439,-664.31,0.00016438,2]
[346341314,1734899459448,-305.494541,0.00016438,2]
[346341316,1734899459457,-151.0,0.00016438,2]
[346341318,1734899459467,-222.0524,0.00016438,2]
[346341320,1734899459476,-615.02,0.00016438,2]
[346341322,1734899459486,-1257.34,0.00016438,2]
[346341323,1734899459495,-516.04,0.00016438,2]
[346341325,1734899459505,-500.0,0.00016438,2]
[346341327,1734899459514,-457.03041432,0.00016438,2]
[346341329,1734899459523,-500.0,0.00016438,2]
[346341331,1734899459532,-641.21,0.00016438,2]
[346341332,1734899459542,-500.0,0.00016438,2]
[346341333,1734899459551,-500.0,0.00016438,2]
[346341334,1734899459563,-811.1,0.00016438,2]
[346341337,1734899459580,-500.0,0.00016438,2]
[346341338,1734899459590,-500.0,0.00016438,2]
[346341340,1734899459600,-972.67,0.00016438,2]
[346341342,1734899459610,-500.0,0.00016438,2]
[346341343,1734899459619,-871.97,0.00016438,2]
[346341345,1734899459628,-204.7,0.00016438,2]
[346341347,1734899459637,-804.52,0.00016438,2]
[346341349,1734899459647,-1069.41,0.00016438,2]
[346341350,1734899459657,-500.0,0.00016438,2]
[346341352,1734899459666,-500.0,0.00016438,2]
[346341354,1734899459676,-212.82528,0.00016438,2]
[346341356,1734899459685,-212.82528,0.00016438,2]
[346341358,1734899459694,-500.0,0.00016438,2]
[346341360,1734899459704,-151.0,0.00016438,2]
[346341361,1734899459712,-500.0,0.00016438,2]
[346341363,1734899459722,-151.0,0.00016438,2]
[346341365,1734899459733,-500.0,0.00016438,2]
[346341366,1734899459746,-500.0,0.00016438,2]
[346341367,1734899459756,-500.0,0.00016438,2]
[346341369,1734899459765,-221.36815,0.00016438,2]
[346341371,1734899459774,-634.01,0.00016438,2]
[346341373,1734899459784,-221.36815,0.00016438,2]
[346341375,1734899459793,-500.0,0.00016438,2]
[346341377,1734899459803,-672.07,0.00016438,2]
[346341379,1734899459812,-500.0,0.00016438,2]
[346341380,1734899459823,-838.79,0.00016438,2]
[346341381,1734899459833,-537.68,0.00016438,2]
[346341382,1734899459842,-3545.82,0.00016438,2]
[346341383,1734899459851,-500.0,0.00016438,2]
[346341384,1734899459860,-500.0,0.00016438,2]
[346341385,1734899459869,-500.0,0.00016438,2]
[346341386,1734899459878,-500.0,0.00016438,2]
[346341387,1734899459887,-753.35,0.00016438,2]
[346341388,1734899459897,-537.01,0.00016438,2]
[346341389,1734899459906,-1685.38,0.00016438,2]
[346341390,1734899459915,-531.1,0.00016438,2]
[346341391,1734899459924,-11732.06,0.00016438,2]
[346341392,1734899459934,-500.0,0.00016438,2]
[346341393,1734899459943,-188.61395788,0.00016438,2]
[346341394,1734899459952,-512.75,0.00016438,2]
[346341395,1734899459961,-500.0,0.00016438,2]
[346341396,1734899459971,-500.0,0.00016438,2]
[346341397,1734899459980,-1845.84,0.00016438,2]
[346341398,1734899459991,-579.92,0.00016438,2]
[346341399,1734899460001,-2013.94,0.00016438,2]
[346341400,1734899460010,-506.27,0.00016438,2]
[346341401,1734899460019,-27229.4,0.00016438,2]
[346341402,1734899460030,-500.0,0.00016438,2]
[346341403,1734899460039,-500.0,0.00016438,2]
[346341404,1734899460049,-7122.45,0.00016438,2]
[346341405,1734899460059,-1318.98,0.00016438,2]
[346341406,1734899460071,-500.0,0.00016438,2]
[346341407,1734899460081,-1310.49,0.00016438,2]
[346341408,1734899460090,-9053.51,0.00016438,2]
[346341409,1734899460100,-150.14,0.00016438,2]
[346341410,1734899460109,-150.14,0.00016438,2]
[346341411,1734899460119,-1434.67,0.00016438,2]
[346341412,1734899460128,-500.0,0.00016438,2]
[346341413,1734899460137,-500.0,0.00016438,2]
[346341414,1734899460146,-1202.81,0.00016438,2]
[346341415,1734899460156,-500.0,0.00016438,2]
[346341416,1734899460165,-500.0,0.00016438,2]
[346341417,1734899460174,-601.77,0.00016438,2]
[346341418,1734899460184,-637.13,0.00016438,2]
[346341419,1734899460194,-500.0,0.00016438,2]
[346341420,1734899460203,-753.29,0.00016438,2]
[346341421,1734899460213,-661.66,0.00016438,2]
[346341422,1734899460223,-2970.72,0.00016438,2]
[346341423,1734899460233,-209.41224452,0.00016438,2]
[346341424,1734899460242,-500.0,0.00016438,2]
[346341426,1734899460252,-500.0,0.00016438,2]
[346341427,1734899460261,-1261.25,0.00016438,2]
[346341429,1734899460271,-2865.71,0.00016438,2]
[346341431,1734899460281,-844.59,0.00016438,2]
[346341432,1734899460290,-3391.47,0.00016438,2]
[346341433,1734899460300,-639.42,0.00016438,2]
[346341434,1734899460309,-1571.74,0.00016438,2]
[346341435,1734899460322,-1500.92,0.00016438,2]
[346341436,1734899460331,-500.0,0.00016438,2]
[346341437,1734899460340,-946.43,0.00016438,2]
[346341438,1734899460350,-500.0,0.00016438,2]
[346341439,1734899460359,-1886.65,0.00016438,2]
[346341440,1734899460369,-718.82,0.00016438,2]
[346341441,1734899460379,-814.99,0.00016438,2]
[346341442,1734899460389,-500.0,0.00016438,2]
[346341443,1734899460398,-500.0,0.00016438,2]
[346341444,1734899460408,-500.0,0.00016438,2]
[346341445,1734899460417,-829.57,0.00016438,2]
[346341446,1734899460427,-2146.25,0.00016438,2]
[346341447,1734899460436,-500.93262418,0.00016438,2]
[346341448,1734899460447,-500.0,0.00016438,2]
[346341449,1734899460456,-174.614386,0.00016438,2]
[346341450,1734899460465,-174.614386,0.00016438,2]
[346341451,1734899460474,-174.614386,0.00016438,2]
[346341452,1734899460484,-174.614386,0.00016438,2]
[346341453,1734899460493,-174.614386,0.00016438,2]
[346341454,1734899460503,-174.614386,0.00016438,2]
[346341455,1734899460512,-174.614386,0.00016438,2]
[346341456,1734899460522,-174.614386,0.00016438,2]
[346341457,1734899460532,-174.614386,0.00016438,2]
[346341458,1734899460541,-174.614386,0.00016438,2]
[346341459,1734899460550,-174.614386,0.00016438,2]
[346341460,1734899460560,-174.614386,0.00016438,2]
[346341461,1734899460572,-174.614386,0.00016438,2]
[346341462,1734899460582,-174.614386,0.00016438,2]
[346341463,1734899460591,-174.614386,0.00016438,2]
[346341464,1734899460601,-174.614386,0.00016438,2]
[346341466,1734899460610,-174.614386,0.00016438,2]
[346341467,1734899460620,-174.614386,0.00016438,2]
[346341468,1734899460630,-174.614386,0.00016438,2]
[346341469,1734899460640,-174.61439,0.00016438,2]
[346341470,1734899460650,-151.0,0.00016438,2]
[346341471,1734899460659,-151.0,0.00016438,2]
[346341472,1734899460669,-151.0,0.00016438,2]
[346341473,1734899460678,-151.0,0.00016438,2]
[346341474,1734899460690,-3000.0,0.0001644,2]
[346341475,1734899460699,-151.0,0.0001644,2]
[346341477,1734899460709,-265.198312,0.0001644,2]
[346341479,1734899460719,-192.577086,0.0001644,2]
[346341481,1734899460728,-192.577086,0.0001644,2]
[346341483,1734899460738,-192.577086,0.0001644,2]
[346341484,1734899460748,-192.577086,0.0001644,2]
[346341486,1734899460758,-151.0,0.0001644,2]
[346341488,1734899460767,-151.0,0.0001644,2]
[346341490,1734899460777,-151.0,0.0001644,2]
[346341492,1734899460786,-151.0,0.0001644,2]
[346341493,1734899460796,-151.0,0.0001644,2]
[346341494,1734899460805,-151.0,0.0001644,2]
[346341496,1734899460817,-305.494541,0.0001644,2]
[346341498,1734899460826,-305.494541,0.0001644,2]
[346341500,1734899460837,-156.395316,0.0001644,2]
[346341501,1734899460847,-212.82528,0.0001644,2]
[346341503,1734899460857,-212.82528,0.0001644,2]
[346341505,1734899460866,-151.0,0.0001644,2]
[346341507,1734899460876,-151.0,0.0001644,2]
[346341508,1734899460886,-221.36815,0.0001644,2]
[346341510,1734899460896,-221.36815,0.0001644,2]
[346341512,1734899460905,-7511.98604481,0.0001644,2]
[346341514,1734899460915,-7511.98604481,0.0001644,2]
[346341516,1734899460924,-7511.98604481,0.0001644,2]
[346341518,1734899460936,-7511.98604481,0.0001644,2]
[346341519,1734899460945,-7511.98604481,0.0001644,2]
[346341521,1734899460955,-7511.98604481,0.0001644,2]
[346341523,1734899460965,-7511.98604481,0.0001644,2]
[346341524,1734899460974,-7511.98604481,0.0001644,2]
[346341525,1734899460985,-7511.98604481,0.0001644,2]
[346341526,1734899460997,-7511.98604481,0.0001644,2]
[346341527,1734899461006,-7511.98604481,0.0001644,2]
[346341528,1734899461016,-7511.98604481,0.0001644,2]
[346341529,1734899461027,-7511.98604481,0.0001644,2]
[346341530,1734899461038,-7511.98604481,0.0001644,2]
[346341531,1734899461048,-7511.98604481,0.0001644,2]
[346341532,1734899461058,-7511.98604481,0.0001644,2]
[346341533,1734899461071,-7511.98604481,0.0001644,2]
[346341534,1734899461081,-7511.98604481,0.0001644,2]
[346341535,1734899461091,-7511.98604481,0.0001644,2]
[346341536,1734899461101,-7511.98,0.0001644,2]
[346341537,1734899461112,-2325.8554481,0.0001644,2]
[346341538,1734899461121,-2325.8554481,0.0001644,2]
[346341539,1734899461132,-2325.8554481,0.0001644,2]
[346341540,1734899461141,-2325.8554481,0.0001644,2]
[346341541,1734899461151,-2325.8554481,0.0001644,2]
[346341542,1734899461161,-2325.8554481,0.0001644,2]
[346341543,1734899461171,-2325.8554481,0.0001644,2]
[346341544,1734899461181,-2325.8554481,0.0001644,2]
[346341545,1734899461191,-2325.8554481,0.0001644,2]
[346341546,1734899461201,-2325.8554481,0.0001644,2]
[346341547,1734899461211,-2325.8554481,0.0001644,2]
[346341548,1734899461221,-2325.8554481,0.0001644,2]
[346341549,1734899461231,-2325.8554481,0.0001644,2]
[346341550,1734899461241,-2325.8554481,0.0001644,2]
[346341551,1734899461250,-2325.8554481,0.0001644,2]
[346341552,1734899461260,-2250.11288365,0.0001644,2]
[346341555,1734899461426,-75.74256445,0.0001644,2]
[346341557,1734899461436,-2325.8554481,0.0001644,2]
[346341559,1734899461446,-2325.8554481,0.0001644,2]
[346341561,1734899461456,-2325.8554481,0.0001644,2]
[346341575,1734899461603,-2325.85,0.0001644,2]
[346341577,1734899461617,-152.39918158,0.0001644,2]
[346341579,1734899461628,-152.39918158,0.0001644,2]
[346341580,1734899461638,-152.39918158,0.0001644,2]
[346341581,1734899461648,-152.39918158,0.0001644,2]
[346341583,1734899461658,-152.39918158,0.0001644,2]
[346341585,1734899461667,-152.39918158,0.0001644,2]
[346341587,1734899461678,-152.39918158,0.0001644,2]
[346341589,1734899461688,-152.39918158,0.0001644,2]
[346341591,1734899461698,-152.39,0.0001644,2]
[346341592,1734899461708,-1249.952365,0.0001644,2]
[346341594,1734899461717,-1249.952365,0.0001644,2]
[346341595,1734899461726,-3000.0,0.0001645,2]
[346341597,1734899461737,-3000.0,0.0001646,2]
[346341599,1734899461747,-2744.35291938,0.0001647,2]
[346341600,1734899461759,-255.64708062,0.0001647,2]
[346341601,1734899461769,-500.0,0.00016473,2]
[346341602,1734899461779,-131.12483781,0.00016473,2]
[346341603,1734899462160,-500.0,0.00013698,2]
[346341604,1734899462169,-159.14,0.00013972,2]
[346341605,1734899462179,-470.46322125,0.00016473,2]
[346341606,1734899462188,-500.0,0.00016473,2]
[346341607,1734899462198,-241.55237328,0.00016473,2]
[346341608,1734899462209,-258.44762672,0.00016473,2]
[346341609,1734899462219,-622.22173428,0.00016473,2]
[346341610,1734899462228,-500.0,0.00016473,2]
[346341611,1734899462238,-161.35164103,0.00016473,2]
[346341612,1734899462248,-500.0,0.00016473,2]
[346341613,1734899462257,-162.13990269,0.00016473,2]
[346341614,1734899462267,-500.0,0.00016473,2]
[346341615,1734899462277,-536.37538041,0.00016473,2]
[346341616,1734899462286,-500.0,0.00016473,2]
[346341617,1734899462296,-500.0,0.00016473,2]
[346341618,1734899462305,-518.44840457,0.00016473,2]
[346341619,1734899462316,-500.0,0.00016473,2]
[346341620,1734899462325,-196.45173667,0.00016473,2]
[346341621,1734899462335,-500.0,0.00016473,2]
[346341622,1734899462344,-3000.0,0.0001648,2]
[346341623,1734899462353,-3000.0,0.0001649,2]
[346341624,1734899462363,-3000.0,0.000165,2]
[346341625,1734899462372,-815.299999,0.000165,2]
[346341626,1734899462382,-2830.50691222,0.000165,2]
[346341627,1734899462394,-50282.9513363,0.000165,2]
[346341628,1734899462406,-28570.00034,0.000165,2]
[346341629,1734899462417,-1844.75,0.000165,2]
[346341630,1734899462428,-18826.00000006,0.000165,2]
[346341631,1734899462439,-487.12329508,0.000165,2]
[346341632,1734899462450,-1174.5,0.000165,2]
[346341633,1734899463308,206.74977017,0.0001242,2]
[346341673,1734900328652,1192.655,0.00022,120]
[346341674,1734900329149,1192.35,0.00022,120]
[346341675,1734900329426,1142.37095,0.00022,120]
[346341676,1734900329703,1095.280332,0.00022,120]
[346341677,1734900329986,1049.09987,0.00022,120]
[346341678,1734900330316,1006.7575,0.00022,120]
[346341679,1734900330598,965.0,0.00022,120]
[346341680,1734900331011,923.4,0.00022,120]
[346341681,1734900331360,885.2565,0.00022,120]
[346341682,1734900331672,849.0,0.00022,120]
[346341683,1734900331952,813.223075,0.00022,120]
[346341684,1734900332253,779.48,0.00022,120]
[346341685,1734900332581,746.0,0.00022,120]
[346341686,1734900332839,715.3,0.00022,120]
[346341687,1734900333155,685.50638,0.00022,120]
[346341688,1734900333506,657.7,0.00022,120]
[346341689,1734900333811,629.948,0.00022,120]
[346341690,1734900334265,603.11203,0.00022,120]
[346341691,1734900334564,578.986016,0.00022,120]
[346341692,1734900334870,504.1742,0.00022,120]
[346341693,1734900335181,483.4,0.00022,120]
[346341694,1734900335491,463.2664,0.00022,120]
[346341695,1734900335810,444.2,0.00022,120]
[346341696,1734900336399,444.961852,0.00022,120]
[346341697,1734900336742,425.16,0.00022,120]
[346341698,1734900337049,815.0,0.00022,120]
[346341699,1734900337367,748.2,0.00022,120]
[346341700,1734900337666,685.13739,0.00022,120]
[346341701,1734900338356,628.4,0.00022,120]
[346341702,1734900338843,628.0,0.00022,120]
[346341703,1734900339198,523.7,0.00022,120]
[346341704,1734900339501,480.63233,0.00022,120]
[346341705,1734900339829,440.417,0.00022,120]
[346341706,1734900340162,1210.831423,0.00022,120]
[346341707,1734900340510,907.45,0.00022,120]
[346341708,1734900340845,681.92,0.00022,120]
[346341709,1734900341150,510.9,0.00022,120]
[346341710,1734900341623,382.0487,0.00022,120]
[346341711,1734900341930,287.27102,0.00022,120]
[346341712,1734900343497,416.5,0.00022,120]
[346341713,1734900349120,-721.15144177,0.00012499,2]
[346341714,1734900349141,-119.91655823,0.00012625,2]
[346341715,1734900441106,-300.0,0.00012497,2]
[346341716,1734900441130,-300.0,0.00012497,2]
[346341717,1734900441154,-172.506,0.00012498,2]
[346341718,1734900446093,-327.494,0.00012498,2]
[346341719,1734900446115,-170.33072084,0.00012498,2]
[346341720,1734900446137,-500.0,0.00012498,2]
[346341721,1734900446158,-83.76418073,0.00012498,2]
[346341722,1734900547138,-401.577653,0.00012291,2]
[346341723,1734900547160,-1469.3652,0.00012415,2]
[346341724,1734900547182,-300.0,0.00012498,2]
[346341725,1734900547203,-300.0,0.00012498,2]
[346341726,1734900547226,-140074.7974907,0.00012499,2]
[346341727,1734900547247,-1022.91082482,0.00012525,2]
[346341728,1734900547269,-618.82336787,0.00012625,2]
[346341729,1734900547290,-354.96038019,0.00012774,2]
[346341730,1734900548094,-398.89104321,0.00012774,2]
[346341731,1734900548115,-691.00615679,0.00012862,2]
[346342106,1734900636132,-331.904668,0.00012862,2]
[346342108,1734900636142,-1022.91082479,0.00013199,2]
[346342110,1734900636151,-1870.61461584,0.00013362,2]
[346342112,1734900636162,-156.03062887,0.00013462,2]
[346342114,1734900636172,-1022.91082479,0.00013535,2]
[346342116,1734900636181,-666.0,0.00013598,2]
[346342118,1734900636191,-300.0,0.00013697,2]
[346342120,1734900636201,-300.0,0.00013697,2]
[346342122,1734900636210,-500.0,0.00013697,2]
[346342124,1734900636219,-500.0,0.00013697,2]
[346342126,1734900636229,-516.89862915,0.00013697,2]
[346342129,1734900636238,-312.14642382,0.00013697,2]
[346342131,1734900636247,-500.0,0.00013697,2]
[346342133,1734900636257,-430.0,0.00013697,2]
[346342136,1734900636267,-400.0,0.00013697,2]
[346342138,1734900636277,-175.12629401,0.00013697,2]
[346342140,1734900636286,-250.0,0.00013697,2]
[346342142,1734900636296,-500.0,0.00013697,2]
[346342144,1734900636306,-500.0,0.00013697,2]
[346342146,1734900636315,-500.0,0.00013697,2]
[346342148,1734900636324,-332.95260366,0.00013697,2]
[346342150,1734900636333,-475.92203673,0.00013697,2]
[346342152,1734900636343,-500.0,0.00013698,2]
[346342154,1734900636355,-500.0,0.00013698,2]
[346342156,1734900636365,-500.0,0.00013698,2]
[346342158,1734900636374,-500.0,0.00013698,2]
[346342160,1734900636384,-500.0,0.00013698,2]
[346342162,1734900636394,-500.0,0.00013698,2]
[346342164,1734900636403,-500.0,0.00013698,2]
[346342166,1734900636412,-500.0,0.00013698,2]
[346342168,1734900636424,-486.92227822,0.00013698,2]
[346342170,1734900636436,-13.07772178,0.00013698,2]
[346342172,1734900636445,-635.59,0.00013698,2]
[346342174,1734900636455,-500.0,0.00013698,2]
[346342176,1734900636464,-500.0,0.00013698,2]
[346342178,1734900636473,-500.0,0.00013698,2]
[346342180,1734900636483,-500.0,0.00013698,2]
[346342183,1734900636492,-500.0,0.00013698,2]
[346342185,1734900636502,-500.0,0.00013698,2]
[346342187,1734900636511,-294.51932846,0.00013698,2]
[346342189,1734900636523,-205.48067154,0.00013698,2]
[346342191,1734900636532,-500.0,0.00013698,2]
[346342193,1734900636541,-500.0,0.00013698,2]
[346342195,1734900636552,-500.0,0.00013698,2]
[346342197,1734900636561,-500.0,0.00013698,2]
[346342199,1734900636571,-500.0,0.00013698,2]
[346342201,1734900636580,-404.54460616,0.00013698,2]
[346342203,1734900636589,-500.0,0.00013698,2]
[346342205,1734900636598,-500.0,0.00013698,2]
[346342207,1734900636607,-500.0,0.00013698,2]
[346342209,1734900636616,-16.16270184,0.00013698,2]
[346342215,1734900636667,-497.87787613,0.00013698,2]
[346342216,1734900636679,-500.0,0.00013698,2]
[346342219,1734900636689,-1241.53,0.00013698,2]
[346342221,1734900636699,-500.0,0.00013698,2]
[346342223,1734900636708,-78.66212381,0.00013698,2]
[346342225,1734900636719,-89.33787619,0.00013698,2]
[346342227,1734900636729,-500.0,0.00013698,2]
[346342229,1734900636738,-500.0,0.00013698,2]
[346342231,1734900636747,-500.0,0.00013698,2]
[346342233,1734900636757,-662.68982381,0.00013698,2]
[346342235,1734900636768,-103.19017619,0.00013698,2]
[346342237,1734900636778,-579.49,0.00013698,2]
[346342239,1734900636787,-500.0,0.00013698,2]
[346342241,1734900636797,-500.0,0.00013698,2]
[346342243,1734900636806,-500.0,0.00013698,2]
[346342245,1734900636815,-754.75,0.00013698,2]
[346342247,1734900636825,-500.0,0.00013698,2]
[346342249,1734900636834,-500.0,0.00013698,2]
[346342251,1734900636843,-500.0,0.00013698,2]
[346342253,1734900636852,-500.0,0.00013698,2]
[346342255,1734900636862,-422.93345007,0.00013698,2]
[346342257,1734900636871,-500.0,0.00013698,2]
[346342259,1734900636880,-500.0,0.00013698,2]
[346342261,1734900636890,-188.86473845,0.00013698,2]
[346342263,1734900636899,-265.89904971,0.00013698,2]
[346342266,1734900636910,-234.10095029,0.00013698,2]
[346342268,1734900636920,-155.58204971,0.00013698,2]
[346342270,1734900636931,-344.41795029,0.00013698,2]
[346342272,1734900636940,-500.0,0.00013698,2]
[346342274,1734900636949,-500.0,0.00013698,2]
[346342276,1734900636958,-155.93196971,0.00013698,2]
[346342278,1734900636970,-344.06803029,0.00013698,2]
[346342280,1734900636979,-23.66196971,0.00013698,2]
[346342282,1734900636990,-476.33803029,0.00013698,2]
[346342284,1734900636999,-487.20619367,0.00013698,2]
[346342287,1734900637011,-12.79380633,0.00013698,2]
[346342289,1734900637020,-585.04,0.00013698,2]
[346342291,1734900637029,-500.0,0.00013698,2]
[346342293,1734900637038,-500.0,0.00013698,2]
[346342295,1734900637047,-531.76,0.00013698,2]
[346342297,1734900637056,-500.0,0.00013698,2]
[346342317,1734900637235,-651.85,0.00013698,2]
[346342319,1734900637245,-500.0,0.00013698,2]
[346342321,1734900637255,-500.0,0.00013698,2]
[346342323,1734900637265,-500.0,0.00013698,2]
[346342325,1734900637274,-500.0,0.00013698,2]
[346342328,1734900637284,-500.0,0.00013698,2]
[346342329,1734900637293,-500.0,0.00013698,2]
[346342332,1734900637304,-500.0,0.00013698,2]
[346342333,1734900637313,-500.0,0.00013698,2]
[346342335,1734900637322,-500.0,0.00013698,2]
[346342337,1734900637331,-500.0,0.00013698,2]
[346342339,1734900637345,-500.0,0.00013698,2]
[346342342,1734900637357,-500.0,0.00013698,2]
[346342344,1734900637366,-500.0,0.00013698,2]
[346342346,1734900637376,-500.0,0.00013698,2]
[346342347,1734900637387,-500.0,0.00013698,2]
[346342350,1734900637396,-505.7,0.00013698,2]
[346342351,1734900637405,-500.0,0.00013698,2]
[346342353,1734900637414,-500.0,0.00013698,2]
[346342356,1734900637423,-500.0,0.00013698,2]
[346342358,1734900637432,-500.0,0.00013698,2]
[346342360,1734900637441,-500.0,0.00013698,2]
[346342362,1734900637450,-912.92,0.00013698,2]
[346342364,1734900637459,-500.0,0.00013698,2]
[346342366,1734900637468,-1920.65,0.00013698,2]
[346342368,1734900637478,-500.0,0.00013698,2]
[346342370,1734900637486,-500.0,0.00013698,2]
[346342372,1734900637495,-3106.79798472,0.00013698,2]
[346342404,1734900638586,-800.88919395,0.00013698,2]
[346342405,1734900638599,-401.33490536,0.00013698,2]
[346342406,1734900638610,-31.74791597,0.00013698,2]
[346342407,1734900638620,-500.0,0.00013698,2]
[346342408,1734900638630,-500.0,0.00013698,2]
[346342409,1734900638639,-540.71,0.00013698,2]
[346342410,1734900638649,-1754.46895237,0.00013698,2]
[346342411,1734900638661,-1180.0,0.00013698,2]
[346342412,1734900638672,-1007.1,0.00013698,2]
[346342527,1734900640605,-10807.69104763,0.00013698,2]
[346342529,1734900640615,-500.0,0.00013698,2]
[346342532,1734900640626,-500.0,0.00013698,2]
[346342534,1734900640635,-7227.1,0.00013698,2]
[346342536,1734900640645,-500.0,0.00013698,2]
[346342538,1734900640654,-500.0,0.00013698,2]
[346342540,1734900640663,-500.0,0.00013698,2]
[346342542,1734900640672,-1079.66,0.00013698,2]
[346342544,1734900640681,-500.0,0.00013698,2]
[346342546,1734900640691,-500.0,0.00013698,2]
[346342548,1734900640700,-1242.33,0.00013698,2]
[346342550,1734900640710,-651.52,0.00013698,2]
[346342552,1734900640719,-500.0,0.00013698,2]
[346342554,1734900640728,-5023.38,0.00013698,2]
[346342556,1734900640737,-812.7,0.00013698,2]
[346342558,1734900640747,-500.0,0.00013698,2]
[346342560,1734900640756,-744.16,0.00013698,2]
[346342562,1734900640765,-500.0,0.00013698,2]
[346342564,1734900640774,-500.0,0.00013698,2]
[346342566,1734900640784,-5575.55,0.00013698,2]
[346342568,1734900640792,-500.0,0.00013698,2]
[346342570,1734900640802,-500.0,0.00013698,2]
[346342572,1734900640811,-500.0,0.00013698,2]
[346342574,1734900640820,-500.0,0.00013698,2]
[346342576,1734900640829,-500.0,0.00013698,2]
[346342578,1734900640838,-500.0,0.00013698,2]
[346342580,1734900640848,-500.0,0.00013698,2]
[346342582,1734900640858,-500.0,0.00013698,2]
[346342584,1734900640867,-777.11,0.00013698,2]
[346342586,1734900640876,-500.0,0.00013698,2]
[346342588,1734900640885,-500.0,0.00013698,2]